[Event "Super United Croatia GCT Blitz 2022"]
[Site "Zagreb"]
[Date "2022.07.24"]
[Round "14"]
[White "Nepomniachtchi, Ian"]
[Black "Firouzja, Alireza"]
[Result "0-1"]
[ECO "C54"]
[WhiteElo "2766"]
[BlackElo "2793"]
[Annotator "TA"]
[PlyCount "58"]
[EventDate "2022.07.20"]
[EventType "tourn"]
[EventCountry "CRO"]
[SourceTitle "playchess.com"]
[Source "ChessBase"]
[SourceQuality "1"]
[TimeControl "300+2"]

{[%evp 12,58,11,8,9,8,20,0,0,-28,0,0,14,0,0,-14,0,0,12,12,2,1,50,46,43,0,0,0,0,0,0,0,0,0,0,-155,-45,-142,-139,-1065,-1046,-1006,-897,-1010,-924,-29992,-29993,-29993,-29993]} 1. e4 {[%emt 0:00:01]} e5 {[%emt 0:00:00]} 2. Nf3 {[%emt 0:00:02]} Nc6 {[%emt 0:00:01]} 3. Bc4 {[%emt 0:00:01]} Nf6 {[%emt 0:00:01]} 4. d3 {[%emt 0:00:02]} Bc5 {[%emt 0:00:01]} 5. O-O {[%emt 0:00:02]} d6 {[%emt 0:00:00]} 6. c3 {[%emt 0:00:01]} O-O {[%emt 0:00:02]} 7. Re1 {[%emt 0:00:02]} a5 {[%emt 0:00:01] C54: Giuoco Piano: 4 c3 Nf6, main lines with 5 d4 and 5 d3.} 8. h3 {[%emt 0:00:02]} Ba7 {[%emt 0:00:01]} 9. Na3 {[%emt 0:00:02] [#]} Ne7 $5 $146 {[%emt 0:00:01][%cal Bc6e7,Be7g6,Bg6e5][%mdl 8] The position is equal. An interesting novelty.} ({Predecessor:} 9... Be6 10. Bg5 h6 11. Bh4 g5 12. Bg3 Nh5 13. Kh2 Qf6 14. Nb5 Bb6 15. b3 Rad8 {1-0 (34) Eljanov,P (2691)-Hovhannisyan,R (2622) Riga 2021}) 10. Nb5 {[%emt 0:00:21]} Bb6 {[%emt 0:00:08]} 11. d4 {[%emt 0:00:02]} exd4 {[%emt 0:00:36]} (11... c6 12. dxe5 cxb5 13. exf6 bxc4 14. fxe7 Qxe7 15. Bf4 $14) 12. Nbxd4 {[%emt 0:00:08]} Ng6 {[%emt 0:00:04]} 13. Bb3 {[%emt 0:00:40]} h6 {[%emt 0:00:11]} 14. Qc2 {[%emt 0:00:11]} Ne5 {[%emt 0:00:22]} 15. Bf4 {[%emt 0:00:04]} Re8 {[%emt 0:00:09]} 16. Rad1 {[%emt 0:00:02] Black must now prevent Bxe5.} Bd7 {[%emt 0:00:05]} (16... a4 $11 17. Bxe5 (17. Bxa4 Nxf3+ 18. gxf3 Nh5 $11) 17... axb3 18. Nxb3 Bd7) 17. a4 {[%emt 0:00:05]} Qc8 {[%emt 0:00:11]} 18. Bh2 {[%emt 0:00:27]} (18. Nd2 $5 {[%cal Rd2c4]}) 18... c5 {[%emt 0:00:22]} 19. Nxe5 {[%emt 0:00:12]} dxe5 {[%emt 0:00:01]} 20. Nf5 {[%emt 0:00:34]} Bxf5 {[%emt 0:00:07]} 21. exf5 {[%emt 0:00:01][%cal Ob3f7] Strongly threatening Bxf7+!} c4 {[%emt 0:00:01]} 22. Ba2 {[%emt 0:00:01]} e4 {[%emt 0:00:11]} 23. Rd6 $2 {[%emt 0:00:27] [#]} (23. Kh1 $11) 23... Bc5 {[%emt 0:00:13]} ({Of course not} 23... Bc7 $6 24. Rdd1 $11) ({Black should try} 23... e3 $1 $17 {[%cal Re3f2]} 24. f3 (24. Rxb6 Qc5 $17) 24... Bc5) 24. Rxf6 {[%emt 0:00:48]} gxf6 $40 {[%emt 0:00:02][%mdl 128] Black wants a kill.} 25. Rxe4 $2 {[%emt 0:00:06][%mdl 8192] This move loses the game for White.} (25. Bf4 $17) 25... Qxf5 $19 {[%emt 0:00:06]} 26. Be5 {[%emt 0:00:39]} Rxe5 {[%emt 0:00:10]} 27. Rg4+ {[%emt 0:00:01]} Kf8 {[%emt 0:00:02]} 28. Qc1 {[%emt 0:00:06]} Qxf2+ {[%emt 0:00:06]} 29. Kh2 {[%emt 0:00:01]} Rg5 {[%emt 0:00:03] Weighted Error Value: White=0.94/Black=0.12 (very precise)} 0-1

[Event "Super United Croatia GCT Blitz 2022"]
[Site "Zagreb"]
[Date "2022.07.24"]
[Round "14"]
[White "Vachier-Lagrave, Maxime"]
[Black "Carlsen, Magnus"]
[Result "1/2-1/2"]
[ECO "C67"]
[WhiteElo "2760"]
[BlackElo "2864"]
[Annotator "TA"]
[PlyCount "79"]
[EventDate "2022.07.20"]
[EventType "tourn"]
[EventCountry "CRO"]
[SourceTitle "playchess.com"]
[Source "ChessBase"]
[SourceQuality "1"]
[TimeControl "300+2"]

{[%evp 15,79,22,19,12,11,0,0,0,8,0,0,-8,0,-11,12,5,6,12,16,13,14,14,38,37,47,39,42,43,42,42,41,41,42,43,48,37,35,23,23,23,28,15,23,0,0,0,0,0,0,0,0,0,0,0,0,0,0,0,0,0,0,0,0,0,0,0]} 1. e4 {[%emt 0:00:01]} e5 {[%emt 0:00:01]} 2. Nf3 {[%emt 0:00:01]} Nc6 {[%emt 0:00:01]} 3. Bb5 {[%emt 0:00:01]} Nf6 {[%emt 0:00:02]} 4. O-O {[%emt 0:00:02][%cal Bh1f1,Bf1e1,Be1e5][%mdl 32]} Nxe4 {[%emt 0:00:02]} 5. Re1 {[%emt 0:00:01]} Nd6 {[%emt 0:00:02]} 6. Nxe5 {[%emt 0:00:02]} Be7 {[%emt 0:00:01]} 7. Bf1 {[%emt 0:00:01]} Nxe5 {[%emt 0:00:10]} 8. Rxe5 {[%emt 0:00:02]} O-O {[%emt 0:00:02]} 9. Nc3 {[%emt 0:00:03] C67: Ruy Lopez: Berlin Defence: 4 0-0 Nxe4.} Ne8 {[%emt 0:00:06]} 10. d4 {[%emt 0:00:02]} Bf6 {[%emt 0:00:06]} 11. Re1 {[%emt 0:00:02]} d5 $1 {[%emt 0:00:02]} 12. b3 {[%emt 0:00:01]} c6 {[%emt 0:00:28]} 13. Ba3 {[%emt 0:00:01]} Nd6 {[%emt 0:00:01]} 14. Qf3 {[%emt 0:00:02]} Be6 {[%emt 0:01:32]} 15. Qf4 {[%emt 0:00:03]} Be7 {[%emt 0:00:09]} 16. Bd3 {[%emt 0:00:10]} Ne8 {[%emt 0:00:16]} 17. Bxe7 {[%emt 0:00:02]} Qxe7 {[%emt 0:00:02] [#]} 18. h4 $146 {[%emt 0:00:01]} ({Predecessor:} 18. Re5 g6 19. Rae1 Ng7 20. Ne2 Rae8 21. Ng3 Qd6 22. Qf6 Qd8 23. Qxd8 Rxd8 24. h4 {½-½ (50) Vachier Lagrave,M (2751)-So,W (2772) Saint Louis 2021}) 18... Qf6 {[%emt 0:00:09]} 19. Ne2 {[%emt 0:00:05]} Rd8 {[%emt 0:00:08]} 20. f3 {[%emt 0:00:15]} g6 {[%emt 0:00:24]} 21. Qxf6 {[%emt 0:00:26]} Nxf6 {[%emt 0:00:02]} 22. Nf4 {[%emt 0:00:06]} Bd7 {[%emt 0:00:05]} 23. g4 {[%emt 0:00:02]} Ne8 {[%emt 0:00:01]} 24. Kf2 {[%emt 0:00:10]} Nc7 {[%emt 0:00:05]} 25. c3 {[%emt 0:00:05]} Rfe8 {[%emt 0:00:03]} 26. Rh1 {[%emt 0:00:12]} Ne6 {[%emt 0:00:12]} 27. Kg3 {[%emt 0:00:03]} Kg7 {[%emt 0:00:12]} 28. h5 {[%emt 0:00:07]} Nxf4 {[%emt 0:00:03]} 29. Kxf4 {[%emt 0:00:04]} h6 {[%emt 0:00:03] The position is equal.} 30. hxg6 {[%emt 0:00:30]} fxg6 {[%emt 0:00:01]} 31. Rae1 {[%emt 0:00:01]} g5+ {[%emt 0:00:04]} 32. Kg3 {[%emt 0:00:01]} Rxe1 {[%emt 0:00:02]} 33. Rxe1 {[%emt 0:00:01] [#] Strongly threatening Re7+.} Re8 {[%emt 0:00:01] Prevents Re7+.} 34. Rxe8 {[%emt 0:00:02]} Bxe8 $11 {[%emt 0:00:01][%mdl 4096] Endgame KB-KB} 35. b4 {[%emt 0:00:19]} Kf6 {[%emt 0:00:03]} 36. f4 {[%emt 0:00:02]} Bd7 {[%emt 0:00:05]} 37. a3 {[%emt 0:00:02]} Be6 {[%emt 0:00:06]} 38. Bc2 {[%emt 0:00:02]} Bd7 {[%emt 0:00:01]} 39. Bd3 {[%emt 0:00:01]} Be6 {[%emt 0:00:01]} 40. Bc2 {[%emt 0:00:00] Weighted Error Value: White=0.03 (flawless) /Black=0.03 (flawless)} 1/2-1/2

[Event "Super United Croatia GCT Blitz 2022"]
[Site "Zagreb"]
[Date "2022.07.24"]
[Round "14"]
[White "Dominguez Perez, Leinier"]
[Black "Van Foreest, Jorden"]
[Result "0-1"]
[ECO "B12"]
[WhiteElo "2754"]
[BlackElo "2678"]
[Annotator "TA"]
[PlyCount "88"]
[EventDate "2022.07.20"]
[EventType "tourn"]
[EventCountry "CRO"]
[SourceTitle "playchess.com"]
[Source "ChessBase"]
[SourceQuality "1"]
[TimeControl "300+2"]

{[%evp 10,88,12,12,19,21,22,13,28,39,39,39,39,30,46,9,22,16,58,25,23,23,51,69,101,91,89,54,46,54,83,79,74,86,129,112,116,64,122,57,106,100,101,10,8,11,17,8,10,2,8,0,0,0,0,0,102,-11,0,-64,-62,-270,-256,-256,-269,-277,-193,-279,-279,-274,-241,-364,-263,-434,-394,-437,-433,-402,-385,-825,-783]} 1. e4 {[%emt 0:00:01]} c6 {[%emt 0:00:01]} 2. d4 {[%emt 0:00:01]} d5 {[%emt 0:00:01]} 3. e5 {[%emt 0:00:01]} Bf5 {[%emt 0:00:02]} 4. Nd2 {[%emt 0:00:01]} e6 {[%emt 0:00:03]} 5. Nb3 {[%emt 0:00:01]} Nd7 {[%emt 0:00:02]} 6. Nf3 {[%emt 0:00:02]} Qc7 {[%emt 0:00:02] B12: Caro-Kann: Advance Variation.} 7. Be2 {[%emt 0:00:12]} c5 {[%emt 0:00:09]} 8. c3 {[%emt 0:00:02] is currently scoring better than 8.dxc5.} c4 {[%emt 0:00:04] The position is equal.} 9. Nbd2 {[%emt 0:00:01][%cal Bb3d2,Bd2f1,Bf1e3][%mdl 32]} h6 {[%emt 0:00:02]} 10. Nf1 {[%emt 0:00:30]} Ne7 {[%emt 0:00:02]} 11. Ne3 {[%emt 0:00:04]} Bh7 {[%emt 0:00:04] [#]} 12. g3 $146 {[%emt 0:00:01][%cal Bg2g3,Bg3g4][%mdl 32]} ({Predecessor:} 12. O-O Nf5 13. Ne1 f6 14. Bh5+ g6 15. Nxf5 exf5 16. Be2 fxe5 17. dxe5 Nxe5 18. Qxd5 {½-½ (48) Fedoseev,V (2708)-Dreev,A (2637) Struga 2021}) 12... b5 {[%emt 0:00:02]} 13. O-O {[%emt 0:00:33]} Nc6 {[%emt 0:00:38]} 14. Nh4 {[%emt 0:00:12]} Be7 {[%emt 0:00:12]} 15. Nhg2 {[%emt 0:00:02]} a5 {[%emt 0:00:30]} 16. f4 {[%emt 0:00:02]} f5 {[%emt 0:00:06]} 17. g4 {[%emt 0:00:24] gxf5 is the strong threat.} g6 {[%emt 0:00:44]} 18. Bd2 {[%emt 0:00:03]} a4 {[%emt 0:00:05]} 19. b3 {[%emt 0:00:44][%cal Rb3c4]} axb3 {[%emt 0:00:57]} 20. axb3 {[%emt 0:00:01]} Rxa1 {[%emt 0:00:03]} 21. Qxa1 {[%emt 0:00:01]} O-O {[%emt 0:00:01]} 22. bxc4 {[%emt 0:00:13]} bxc4 {[%emt 0:00:01]} 23. Kh1 {[%emt 0:00:17]} (23. h4 $16) 23... Kh8 {[%emt 0:00:02]} (23... Bd8 $14) 24. Be1 {[%emt 0:00:32]} ({Better is} 24. h4 $1 $16) 24... Na5 {[%emt 0:00:21]} (24... Nb6 $14) 25. gxf5 $16 {[%emt 0:00:07]} gxf5 {[%emt 0:00:01]} 26. Bh4 {[%emt 0:00:04]} (26. Bh5 $16) 26... Bxh4 $11 {[%emt 0:00:03]} 27. Nxh4 {[%emt 0:00:01]} Nb3 {[%emt 0:00:08]} 28. Qe1 {[%emt 0:00:20]} Rg8 {[%emt 0:00:03]} 29. Bh5 {[%emt 0:00:21] aiming for Bf7.} Nf8 {[%emt 0:00:04]} 30. Rg1 {[%emt 0:00:06]} Qe7 {[%emt 0:00:11]} 31. Rg3 {[%emt 0:00:15]} Rg7 {[%emt 0:00:05]} 32. Rxg7 {[%emt 0:00:05]} Qxg7 {[%emt 0:00:02] [#]} (32... Kxg7 $11 {keeps the balance.} 33. Kg1 Kh8) 33. Qg1 {[%emt 0:00:19]} ({Only move:} 33. Nxd5 $1 $16 {[%mdl 512] And now Nf6 would win.} exd5 34. e6 Nxe6 35. Qxe6) 33... Qa7 {[%emt 0:00:09]} 34. Bg6 {[%emt 0:00:14]} (34. Qb1 $11) 34... Nd2 $15 {[%emt 0:00:02][%cal Bb3d2,Bd2e4,Be4g3][%mdl 32] White must now prevent ...Ne4.} 35. Bxh7 $2 {[%emt 0:00:05] White does not recover from this.} (35. Bh5 $15) 35... Kxh7 $19 {[%emt 0:00:01]} 36. Qc1 {[%emt 0:00:08]} Ne4 {[%emt 0:00:02]} 37. Qb2 {[%emt 0:00:03]} Qe7 {[%emt 0:00:05]} 38. Nf3 {[%emt 0:00:02]} (38. Nhg2 $142) 38... Ng6 {[%emt 0:00:01]} 39. Ng2 {[%emt 0:00:01]} Qa7 {[%emt 0:00:01]} 40. h4 {[%emt 0:00:02]} (40. Nfh4 {was necessary.}) 40... Qe7 {[%emt 0:00:05]} 41. h5 $2 {[%emt 0:00:02]} (41. Qc1 {is a better defense.}) 41... Ng3+ {[%emt 0:00:01]} 42. Kh2 {[%emt 0:00:01]} Nxh5 {[%emt 0:00:01]} 43. Qd2 {[%emt 0:00:02]} Qg7 {[%emt 0:00:07][%cal Og6f4] Hoping for ...Ngxf4!} 44. Qc1 {[%emt 0:00:02] [#]} (44. Kh1) 44... Ngxf4 $1 {[%emt 0:00:04][%mdl 512] Weighted Error Value: White=0.50/Black=0.16 (very precise)} 0-1

[Event "Super United Croatia GCT Blitz 2022"]
[Site "Zagreb"]
[Date "2022.07.24"]
[Round "14"]
[White "Saric, Ivan"]
[Black "Mamedyarov, Shakhriyar"]
[Result "0-1"]
[ECO "C77"]
[WhiteElo "2680"]
[BlackElo "2759"]
[Annotator "TA"]
[PlyCount "88"]
[EventDate "2022.07.20"]
[EventType "tourn"]
[EventCountry "CRO"]
[SourceTitle "playchess.com"]
[Source "ChessBase"]
[SourceQuality "1"]
[TimeControl "300+2"]

{[%evp 12,88,21,10,8,12,19,0,11,0,0,-3,29,22,27,16,22,24,23,22,14,0,23,10,63,50,33,27,36,-78,-58,-138,-59,-69,-78,-110,-58,-139,-145,-191,-183,-243,-230,-224,-219,-385,-332,-397,-375,-360,-348,-746,-704,-778,-761,-762,-758,-785,-785,-721,-200,-199,-205,-195,-200,-181,0,-830,-862,-830,-592,-1371,-1543,-29981,-29982,-29982,-29983,-29980,-29972]} 1. e4 {[%emt 0:00:01]} e5 {[%emt 0:00:01]} 2. Nf3 {[%emt 0:00:00]} Nc6 {[%emt 0:00:00]} 3. Bb5 {[%emt 0:00:02]} a6 4. Ba4 {[%emt 0:00:00]} Nf6 {[%emt 0:00:02]} 5. d3 {[%emt 0:00:02]} b5 {[%emt 0:00:00]} 6. Bb3 {[%emt 0:00:00]} Bc5 {[%emt 0:00:01]} 7. Bg5 {[%emt 0:00:05]} h6 {[%emt 0:00:04] 7...h6 scores better than 7...d6. C77: Ruy Lopez: 3...a6 4 Ba4 Nf6, unusual lines.} 8. Bh4 {[%emt 0:00:00]} Be7 {[%emt 0:00:03]} 9. Nc3 {[%emt 0:00:10]} d6 {[%emt 0:00:02] The position is equal.} 10. Bxf6 {[%emt 0:00:16]} Bxf6 {[%emt 0:00:03]} 11. a4 {[%emt 0:00:06]} Rb8 {[%emt 0:00:04]} 12. axb5 {[%emt 0:00:03]} axb5 {[%emt 0:00:01]} 13. Nd5 {[%emt 0:00:01]} O-O {[%emt 0:00:10]} 14. O-O {[%emt 0:00:04]} g6 {[%emt 0:00:29] [#]} 15. c3 $146 {[%emt 0:00:07]} ({Predecessor:} 15. Nxf6+ Qxf6 16. h3 Be6 17. Bxe6 Qxe6 18. Qd2 Kh7 19. Ra6 Qd7 20. Qc3 Nd8 21. d4 exd4 22. Nxd4 {1-0 (39) Predke,A (2606)-Dragnev,V (2509) Riga 2018}) 15... Bg7 {[%emt 0:00:04]} 16. h3 {[%emt 0:00:28]} Kh8 {[%emt 0:00:03]} 17. d4 {[%emt 0:01:09]} f5 {[%emt 0:00:22]} ({Black should try} 17... b4 $11) 18. exf5 $14 {[%emt 0:00:01]} gxf5 {[%emt 0:00:02]} 19. dxe5 {[%emt 0:00:03]} dxe5 {[%emt 0:00:03][%cal Bd6e5,Be5e4][%mdl 32]} 20. Re1 {[%emt 0:00:06]} (20. g3 $14) 20... e4 $1 $17 {[%emt 0:00:50]} 21. Nh2 {[%emt 0:00:16]} (21. Nf4 $1 $15 Kh7 22. Bd5) 21... Ne5 {[%emt 0:00:05]} (21... b4 $17 22. Qc2 (22. Ba4 Ne5 $17) 22... bxc3 23. bxc3 Ne5) 22. Nf4 $15 {[%emt 0:00:20]} Qg5 {[%emt 0:00:12]} 23. Qc1 {[%emt 0:00:22]} b4 {[%emt 0:00:09]} ({Better is} 23... h5 $17 24. Qe3 b4 25. cxb4 Rxb4) 24. Rb1 {[%emt 0:01:04]} ({White should play} 24. cxb4 $15 Rxb4 25. Bd5) 24... c5 $17 {[%emt 0:00:05] Black is more active.} 25. Bd5 {[%emt 0:00:04]} (25. g3 $17) 25... c4 $19 {[%emt 0:00:05]} 26. h4 {[%emt 0:00:36]} (26. g3 $142) 26... Qxh4 {[%emt 0:00:14] Threatens to win with ...bxc3.} 27. Qe3 {[%emt 0:00:15][%cal Oh2f3] [#]} Qg5 $1 {[%emt 0:00:07]} 28. cxb4 $2 {[%emt 0:00:08]} (28. g3) 28... Nd3 {[%emt 0:00:06]} 29. g3 {[%emt 0:00:04]} Be5 {[%emt 0:00:25][%cal Re5f4]} ({Wrong is} 29... Nxe1 $2 30. Qxe1 Bd4 31. Kh1 $19) 30. Nxd3 {[%emt 0:00:04]} Qxe3 {[%emt 0:00:02]} ({Not} 30... cxd3 31. f4 Qg7 32. fxe5 $11) 31. Nxe5 {[%emt 0:00:03]} (31. fxe3 cxd3 32. Nf1) 31... Qg5 {[%emt 0:00:05]} 32. Nf7+ {[%emt 0:00:02] [#]} Rxf7 $1 {[%emt 0:00:01]} 33. Bxf7 {[%emt 0:00:01]} Rxb4 {[%emt 0:00:04]} 34. Rbd1 {[%emt 0:00:01]} Qf6 {[%emt 0:00:07]} 35. Bd5 {[%emt 0:00:02]} Qxb2 $2 {[%emt 0:00:05]} (35... Rxb2 {...f4 is the strong threat.} 36. Bxc4 f4 37. gxf4 Qxf4) 36. Bxe4 {[%emt 0:00:03] And now Rd8+ would win.} fxe4 {[%emt 0:00:31]} 37. Rd8+ {[%emt 0:00:00]} Kg7 {[%emt 0:00:04]} 38. Rxc8 {[%emt 0:00:00] [#]} Qd2 $2 {[%emt 0:00:01]} (38... c3 $1 $19 {Hoping for ...Rd4.} 39. Ng4 Rb7) 39. Ra1 $2 {[%emt 0:00:05][%mdl 8192]} (39. Rc7+ $11 Kg6 40. Rc6+ Kh7 41. Rc7+ Kh8 42. Rc8+ Kh7 43. Rc7+ Kg6 44. Rc6+ Kh7 45. Rc7+) 39... Qd7 {[%emt 0:00:08]} 40. Rca8 {[%emt 0:00:02]} c3 {[%emt 0:00:04][%cal Bc4c3,Bc3c2][%mdl 32]} 41. Nf1 {[%emt 0:00:02]} c2 {[%emt 0:00:06]} 42. Rc1 {[%emt 0:00:02]} Rb1 {[%emt 0:00:03] Black mates.} 43. Ra1 {[%emt 0:00:04]} Rxc1 {[%emt 0:00:02]} 44. Rxc1 {[%emt 0:00:01]} Qd1 $1 {[%emt 0:00:01] Weighted Error Value: White=0.77/Black=0.34} 0-1

[Event "Super United Croatia GCT Blitz 2022"]
[Site "Zagreb"]
[Date "2022.07.24"]
[Round "15"]
[White "Carlsen, Magnus"]
[Black "Nepomniachtchi, Ian"]
[Result "1-0"]
[ECO "B23"]
[WhiteElo "2864"]
[BlackElo "2766"]
[Annotator "TA"]
[PlyCount "99"]
[EventDate "2022.07.20"]
[EventType "tourn"]
[EventCountry "CRO"]
[SourceTitle "playchess.com"]
[Source "ChessBase"]
[SourceQuality "1"]
[TimeControl "300+2"]

{[%evp 9,99,0,2,-5,33,17,62,51,62,66,58,61,54,56,80,58,65,69,67,66,67,60,61,61,73,70,79,72,82,79,70,71,72,71,69,80,69,56,64,48,68,43,57,36,49,0,53,43,54,26,55,28,25,18,26,34,65,62,43,60,90,77,99,117,195,195,202,191,209,207,187,200,699,664,596,80,78,77,72,69,129,131,883,877,1133,1110,29985,29986,29986,29987,29990,29991]} 1. e4 {[%emt 0:00:01]} c5 {[%emt 0:00:02]} 2. Nc3 {[%emt 0:00:07]} d6 {[%emt 0:00:03]} 3. d4 {[%emt 0:00:01]} cxd4 {[%emt 0:00:03]} 4. Qxd4 {[%emt 0:00:02]} Nc6 {[%emt 0:00:09]} 5. Qd2 {[%emt 0:00:01]} g6 {[%emt 0:00:02]} 6. b3 {[%emt 0:00:02] B23: Closed Sicilian: Lines without g3.} f5 {[%emt 0:00:28]} (6... Bh6 $5 {[%cal Rh6d2]} 7. f4 f5 $11) 7. Bb2 {[%emt 0:00:11]} Bg7 {[%emt 0:00:01]} 8. O-O-O {[%emt 0:00:22] [#] White is slightly better.} Qa5 $146 {[%emt 0:00:05]} ({Predecessor:} 8... Nf6 9. exf5 Bxf5 10. Bd3 Qa5 11. Nf3 O-O-O 12. Kb1 Kb8 13. Rhe1 Rc8 14. Bxf5 gxf5 {½-½ (47) Pniaczek,M (2329)-Trybus,D (2039) Krakow 2022}) 9. Nd5 {[%emt 0:00:46]} Qxd2+ {[%emt 0:00:10]} 10. Rxd2 {[%emt 0:00:01]} Bxb2+ {[%emt 0:00:02]} 11. Kxb2 {[%emt 0:00:01] Threatens to win with Nc7+.} Kf7 {[%emt 0:00:05]} 12. exf5 {[%emt 0:00:17] White is more active.} Bxf5 {[%emt 0:00:25]} 13. Bc4 {[%emt 0:00:08] And now Nc7+ would win.} Ne5 {[%emt 0:00:08][%cal Bc6e5,Be5d7,Bd7c5,Bc5e4][%mdl 32]} 14. Be2 {[%emt 0:00:03]} Nf6 {[%emt 0:00:02]} 15. Nxf6 {[%emt 0:00:36]} Kxf6 {[%emt 0:00:02]} 16. f4 {[%emt 0:00:01]} Nd7 {[%emt 0:00:16]} 17. Bf3 {[%emt 0:00:13]} Nc5 {[%emt 0:00:04]} 18. Ne2 {[%emt 0:00:01][%cal Bg1e2,Be2c3,Bc3d5][%mdl 32]} Be4 {[%emt 0:00:35]} 19. Bxe4 {[%emt 0:00:01]} Nxe4 {[%emt 0:00:01]} 20. Rd4 {[%emt 0:00:01]} Nc5 {[%emt 0:00:09]} 21. Nc3 {[%emt 0:00:02]} Kf7 {[%emt 0:00:09]} 22. Re1 {[%emt 0:00:02]} Rhe8 {[%emt 0:00:03]} 23. Nd5 {[%emt 0:00:02] Hoping for Nc7.} Rac8 {[%emt 0:00:00] Against Nc7} 24. c4 {[%emt 0:00:25]} h6 {[%emt 0:00:05]} 25. Re3 {[%emt 0:00:10]} a6 {[%emt 0:00:11]} 26. Rh3 {[%emt 0:00:33]} Kg7 {[%emt 0:00:04]} 27. Re3 {[%emt 0:00:02]} Kf7 {[%emt 0:00:02]} 28. g4 {[%emt 0:00:23]} Nd7 {[%emt 0:00:18]} 29. f5 {[%emt 0:00:02]} Ne5 {[%emt 0:00:19]} 30. a4 {[%emt 0:00:11]} gxf5 {[%emt 0:00:12]} 31. gxf5 {[%emt 0:00:01]} Rg8 {[%emt 0:00:01]} 32. Rh4 {[%emt 0:00:05]} b5 {[%emt 0:01:01]} 33. cxb5 {[%emt 0:00:15]} axb5 {[%emt 0:00:01]} 34. axb5 {[%emt 0:00:10]} Rc5 {[%emt 0:00:01]} 35. Nc3 {[%emt 0:00:03]} Rg2+ {[%emt 0:00:18]} 36. Ka3 {[%emt 0:00:01]} Rc8 {[%emt 0:00:13]} (36... Ng4 $16 37. Rf3 Nxh2) 37. Rxh6 $18 {[%emt 0:00:17]} Ra8+ {[%emt 0:00:09] [#]} 38. Na4 $1 {[%emt 0:00:02]} Rg4 {[%emt 0:00:09][%cal Oa8a4]} 39. Rc3 {[%emt 0:00:10] Rc7 is the strong threat.} Ra5 {[%emt 0:00:01]} 40. b6 {[%emt 0:00:02] Strongly threatening Rc7.} Rb5 $2 {[%emt 0:00:00]} (40... Nd7) 41. Rc7 {[%emt 0:00:09]} Rgb4 {[%emt 0:00:01]} 42. Rh3 {[%emt 0:00:04]} (42. f6 $18 {is more deadly.} Rxb3+ 43. Ka2) 42... Kf6 $16 {[%emt 0:00:03]} 43. Rhc3 {[%emt 0:00:04]} Rh4 {[%emt 0:00:05]} 44. h3 {[%emt 0:00:04]} Rf4 {[%emt 0:00:03] [#]} (44... Rd4 $14) 45. Re3 $1 {[%emt 0:00:05] Black must now prevent Nc3.} Rf1 $2 {[%emt 0:00:04][%mdl 8192] This costs Black the game.} (45... Kg5 $16 46. Ka2 (46. Rxe7 Rf1 $16) 46... Rf2+ 47. Kb1 Rf4) 46. Nc3 $18 {[%emt 0:00:03]} Ra5+ {[%emt 0:00:04]} 47. Kb4 {[%emt 0:00:01]} Ra6 {[%emt 0:00:01]} 48. Nd5+ {[%emt 0:00:03] White mates.} Kxf5 {[%emt 0:00:02]} 49. b7 {[%emt 0:00:01]} Rc6 {[%emt 0:00:05]} 50. b8=Q {[%emt 0:00:03] Weighted Error Value: White=0.20 (precise) /Black=0.46} 1-0